bitfinex/quotes_SOLUSD_20260224
["timestamp","ask_amount","ask_price","bid_price","bid_amount"]
[1771973617507,4.93209407,78.96,78.921,0.48807229]
[1771973617809,50.65482372,78.966,78.923,0.48807229]
[1771973618024,50.65482372,78.966,78.93,4.93209407]
[1771973618397,31.66200179,78.959,78.93,4.93209407]
[1771973618599,31.66200179,78.959,78.922,0.48807229]
[1771973619511,0.48476275,78.958,78.922,0.48807229]
[1771973620025,0.48476275,78.949,78.916,0.48807229]
[1771973620228,0.48476275,78.949,78.911,0.48807229]
[1771973624503,0.48476275,78.947,78.911,0.48807229]
[1771973624904,0.48476275,78.939,78.911,0.48807229]
[1771973625408,0.48476275,78.939,78.904,0.48807229]
[1771973625705,0.48476275,78.939,78.901,0.48807229]
[1771973626809,0.48476275,78.937,78.9,5.03209407]
[1771973627012,0.48476275,78.937,78.9,5.52016636]
[1771973627723,0.48476275,78.937,78.9,0.58807229]
[1771973628637,0.48476275,78.937,78.9,0.1]
[1771973628913,0.48476275,78.927,78.9,0.1]
[1771973629320,4.93209407,78.91,78.89,0.1]
[1771973629510,0.48476275,78.909,78.88,0.1]
[1771973629905,0.48476275,78.899,78.88,0.1]
[1771973630111,0.48476275,78.889,78.86,0.1]
[1771973630302,4.93209407,78.9,78.861,0.48807229]
[1771973630502,0.48476275,78.927,78.891,0.48807229]
[1771973630701,0.48476275,78.927,78.861,12.68053917]
[1771973630702,12.66977498,78.928,78.901,0.48807229]
[1771973630902,12.66977498,78.928,78.88,4.93209407]
[1771973630903,0.48476275,78.939,78.911,0.48807229]
[1771973632306,0.48476275,78.945,78.911,0.48807229]
[1771973632506,0.48476275,78.945,78.921,0.48807229]
[1771973633620,12.66720713,78.944,78.921,0.48807229]
[1771973634630,0.48476275,78.943,78.921,0.48807229]
[1771973635314,44.33522496,78.944,78.921,0.48807229]
[1771973635631,31.66801783,78.944,78.921,0.48807229]
[1771973635831,32.14136982,78.944,78.921,0.48807229]
[1771973636722,0.47335199,78.941,78.921,0.48807229]
[1771973637429,0.47335199,78.941,78.911,0.48888692]
[1771973640150,12.66784899,78.94,78.911,0.48888692]
[1771973640331,0.47335199,78.939,78.911,0.48888692]
[1771973641530,12.66784899,78.94,78.911,0.48888692]
[1771973641531,0.47335199,78.937,78.911,0.48888692]
[1771973642030,0.47335199,78.937,78.912,0.48888692]
[1771973643735,0.47335199,78.935,78.912,0.48888692]
[1771973650743,0.47335199,78.933,78.912,0.48888692]
[1771973651942,0.47335199,78.941,78.912,0.48888692]
[1771973652737,0.47335199,78.941,78.906,13.16216428]
[1771973653054,0.47335199,78.939,78.907,0.48888692]
[1771973653950,0.47335199,78.937,78.907,0.48888692]
[1771973654148,0.47335199,78.937,78.909,0.48888692]
[1771973655445,12.66704667,78.945,78.912,0.18152414]
[1771973655631,50.65869834,78.96,78.901,44.35938707]
[1771973655632,0.47335199,78.964,78.931,0.18151459]
[1771973656032,0.47335199,78.978,78.942,0.18151459]
[1771973656955,0.47335199,78.978,78.951,0.18150516]
[1771973657130,0.47335199,78.976,78.951,0.18150516]
[1771973657744,12.66191422,78.977,78.953,0.18149584]
[1771973657942,12.66126667,78.982,78.961,0.18149584]
[1771973658335,13.13436066,78.983,78.961,0.18149584]
[1771973659055,0.47335199,78.982,78.961,0.18149584]
[1771973660353,0.47335199,78.98,78.955,0.18147752]
[1771973660541,0.47335199,78.98,78.956,0.18147752]
[1771973660738,0.47335199,78.98,78.96,5.11446644]
[1771973660939,0.47335199,78.98,78.961,0.18146851]
[1771973661633,13.13302207,78.991,78.961,0.18146851]
[1771973662159,0.47335199,78.99,78.961,0.18146851]
[1771973662457,0.47335199,78.99,78.97,4.93299793]
[1771973662685,0.47335199,78.99,78.97,5.11445754]
[1771973665655,0.47244213,78.988,78.97,5.11445754]
[1771973666248,0.47244213,79.006,78.97,4.93299793]
[1771973666552,0.50035739,79.029,78.98,4.93299793]
[1771973666754,0.50035739,79.029,78.99,4.93299793]
[1771973667349,0.50035739,79.022,78.99,4.93299793]
[1771973668264,0.50035739,79.02,78.99,4.93299793]
[1771973669646,0.50035739,79.02,78.991,12.65967008]
[1771973670542,0.50035739,79.02,78.99,4.93299793]
[1771973670543,0.50035739,79.018,78.99,17.59279058]
[1771973671939,0.50035739,79.018,78.99,4.93299793]
[1771973672446,0.50035739,79.016,78.991,12.65967008]
[1771973672853,0.50035739,79.016,78.976,31.65492572]
[1771973673165,0.50035739,79.016,78.99,4.93299793]
[1771973674174,0.50035739,79.014,78.99,4.93299793]
[1771973674348,0.50035739,79.014,78.96,4.93299793]
[1771973674542,0.50035739,79.014,78.98,4.93299793]
[1771973675569,0.50035739,79.012,78.98,4.93299793]
[1771973679974,0.50035739,79.01,78.99,4.93299793]
[1771973680969,0.50035739,79.01,78.98,17.59430381]
[1771973681353,0.50035739,79.01,78.98,4.93299793]
[1771973682572,0.50035739,79.008,78.98,4.93299793]
[1771973683560,4.93299793,79.03,78.96,4.93299793]
[1771973683561,13.15661346,79.013,78.99,4.93299793]
[1771973683958,0.50035739,79.012,78.99,4.93299793]
[1771973685763,0.50035739,79.012,78.99,17.59282603]
[1771973686177,0.50035739,79.01,78.99,17.59282603]
[1771973688864,0.50035739,79.01,78.98,4.93299793]
[1771973690585,0.50035739,79.008,78.98,4.93299793]
[1771973691663,0.50035739,79.008,78.981,12.66127296]
[1771973691871,0.50035739,79.008,78.99,4.93299793]
[1771973693970,0.50035739,79.006,78.985,12.66055316]
[1771973695483,0.50035739,79.006,78.981,12.66127296]
[1771973698290,0.2,79.04,78.964,44.32361752]
[1771973698291,0.50035739,79.004,78.964,44.32361752]
[1771973698581,0.50035739,79.004,78.97,4.93299793]
[1771973698769,0.50035739,79.004,78.964,44.32361752]
[1771973699184,0.50035739,79.004,78.97,4.93299793]
[1771973699573,0.50035739,79.002,78.971,12.66287624]
[1771973700893,0.50035739,79.0,78.96,4.93299793]
[1771973702991,0.50035739,78.998,78.97,4.93299793]
[1771973703290,4.93299793,79.02,78.971,0.47465482]
[1771973704175,31.64056275,79.013,78.971,0.47465482]
[1771973705074,0.48896507,79.01,78.973,0.47465482]
[1771973709196,0.48896507,79.008,78.975,0.47465482]
[1771973709496,0.48896507,79.008,78.991,0.47465482]
[1771973709787,12.65677842,79.01,78.991,0.47465482]
[1771973712499,0.48896507,79.01,78.991,0.47465482]
[1771973714986,12.65678593,79.009,78.991,0.47465482]
[1771973715401,13.145751,79.009,78.991,0.47465482]
[1771973716483,0.48896507,79.013,78.991,0.47465482]
[1771973719582,0.48896507,79.011,78.991,0.47465482]
[1771973720997,0.48896507,79.009,78.991,0.47465482]
[1771973726404,0.47955855,79.007,78.991,0.47465482]
[1771973731896,0.47955855,79.007,78.99,4.92803687]
[1771973731897,0.47955855,79.007,78.992,0.47120949]
[1771973735915,0.47955855,79.011,78.994,0.47120949]
[1771973739212,0.47955855,79.011,78.995,12.65902905]
[1771973740411,0.47955855,79.011,78.995,0.47120949]
[1771973741016,0.47955855,79.009,78.995,0.47120949]
[1771973741208,0.47955855,79.009,78.982,0.47120949]
[1771973744320,0.47955855,79.007,78.984,0.47120949]
[1771973745118,12.65694613,79.008,78.984,0.47120949]
[1771973745320,0.47955855,79.007,78.984,0.47120949]
[1771973746519,0.47955855,79.007,78.985,12.66063176]
[1771973746823,0.47955855,79.007,78.991,0.47120949]
[1771973750405,13.13682508,79.006,78.991,0.47120949]
[1771973750605,0.47955855,79.005,78.991,0.47120949]
[1771973753019,0.47955855,79.011,78.993,0.47120949]
[1771973753927,0.47955855,79.015,78.993,0.47120949]
[1771973754224,0.47955855,79.037,79.001,0.47120949]
[1771973754809,44.28305729,79.037,79.001,0.47120949]
[1771973755122,0.47955855,79.036,79.001,0.47120949]
[1771973755328,0.492856,79.034,79.001,0.47120949]
[1771973756628,0.492856,79.032,79.001,0.47120949]
[1771973758927,0.492856,79.03,79.001,0.47120949]
[1771973761032,0.492856,79.028,79.011,0.49699033]
[1771973762130,0.492856,79.028,79.012,0.49699033]
[1771973769135,0.492856,79.034,79.012,0.49699033]
[1771973770626,0.492856,79.032,79.012,0.49699033]
[1771973772752,0.492856,79.048,79.022,0.29984088]
[1771973772920,0.492856,79.048,79.031,0.29984088]
[1771973773335,0.492856,79.053,79.031,0.29984088]
[1771973774821,0.492856,79.051,79.031,0.29984088]
[1771973775556,12.64890426,79.059,79.033,0.29983635]
[1771973775728,0.2,79.06,79.041,0.29983412]
[1771973775927,0.2,79.07,79.042,0.09983412]
[1771973776126,12.64718157,79.069,79.051,0.09983412]
[1771973776339,13.14003757,79.069,79.051,0.09983412]
[1771973776521,0.492856,79.069,79.051,0.09983412]
[1771973777330,0.492856,79.069,79.052,0.09983192]
[1771973778225,0.2,79.07,79.052,0.09983192]
[1771973778645,0.2,79.08,79.061,0.49699033]
[1771973779733,0.2,79.08,79.063,0.49699033]
[1771973783330,0.2,79.08,79.065,0.49699033]
[1771973784348,0.2,79.09,79.072,0.49699033]
[1771973784552,0.2,79.09,79.08,4.91913789]
[1771973784742,0.2,79.09,79.081,0.45196811]
[1771973786351,0.46786607,79.089,79.08,4.91913789]
[1771973786535,0.46786607,79.089,79.051,0.45871183]
[1771973787051,0.46786607,79.089,79.061,0.45871183]
[1771973787356,0.46786607,79.089,79.04,4.91913789]
[1771973787357,0.66786607,79.1,79.081,0.45871183]
[1771973788438,0.66786607,79.1,79.083,0.45871183]
[1771973790533,0.66786607,79.1,79.084,12.64478276]
[1771973790735,0.66786607,79.1,79.085,0.45871183]
[1771973791344,0.66786607,79.1,79.09,4.91913789]
[1771973792539,0.2,79.13,79.092,0.45871183]
[1771973792737,0.2,79.13,79.111,0.45871183]
[1771973792936,0.66786607,79.13,79.111,0.13425125]
[1771973793255,0.2,79.13,79.12,4.91913789]
[1771973793564,0.46786607,79.142,79.12,4.91913789]
[1771973793764,0.56786607,79.14,79.12,4.91913789]
[1771973794936,0.56786607,79.14,79.121,0.45871183]
[1771973795441,0.56786607,79.14,79.121,13.0975814]
[1771973795843,0.56786607,79.14,79.12,4.91913789]
[1771973796151,0.1,79.14,79.122,0.45871183]
[1771973796550,0.1,79.14,79.13,4.91913789]
[1771973796961,0.1,79.14,79.131,12.63727237]
[1771973797139,0.1,79.14,79.13,4.91913789]
[1771973798062,0.1,79.14,79.131,0.45871183]
[1771973798562,0.1,79.14,79.132,12.63711267]
[1771973798758,0.1,79.14,79.133,0.45871183]
[1771973801445,0.1,79.14,79.138,0.54261674]
[1771973803774,0.1,79.14,79.13,4.91913789]
[1771973803775,0.46786607,79.159,79.135,12.63652143]
[1771973804073,0.02869009,79.149,79.111,0.48572266]
[1771973805077,0.02869009,79.149,79.112,0.48572266]
[1771973806054,0.02869009,79.149,79.121,0.48572266]
[1771973808180,0.02868398,79.154,79.131,0.48572266]
[1771973810759,0.02867957,79.149,79.111,0.48572266]
[1771973813080,0.02867672,79.148,79.106,0.48572266]
[1771973813278,0.02867672,79.139,79.106,0.48572266]
[1771973813656,0.02867672,79.139,79.1,4.91913789]
[1771973813864,0.02867532,79.129,79.095,0.48572266]
[1771973815474,0.02867532,79.129,79.096,12.64286436]
[1771973816683,0.02867532,79.129,79.095,0.48572266]
[1771973816878,0.02867532,79.129,79.095,13.12872477]
[1771973817272,0.02867532,79.129,79.096,0.48572266]
[1771973822059,0.02867532,79.129,79.1,4.91913789]
[1771973823779,0.02867532,79.129,79.096,0.48572266]
[1771973829592,0.02867532,79.129,79.101,0.48572266]
[1771973845400,0.02863613,79.136,79.101,0.48572266]
[1771973845605,0.02863613,79.136,79.103,0.48572266]
[1771973849806,0.02863613,79.136,79.104,0.48572266]
[1771973864938,12.63631423,79.137,79.111,0.48572266]
[1771973865342,12.63455804,79.148,79.121,0.48572266]
[1771973865936,0.1,79.16,79.133,0.48572266]
[1771973866668,0.1,79.16,79.141,0.48572266]
[1771973866953,0.1,79.16,79.141,0.16125803]
[1771973869244,0.1,79.16,79.141,12.79693359]
[1771973869549,0.1,79.16,79.142,0.45752113]
[1771973870937,0.2,79.17,79.144,0.45752113]
[1771973871336,0.65307962,79.17,79.144,0.45752113]
[1771973872155,0.4853711,79.169,79.146,1.67e-06]
[1771973872740,0.4853711,79.169,79.055,102.0]
[1771973872955,4.91478465,79.13,79.055,31.62355322]
[1771973873147,0.4853711,79.129,79.08,4.91478465]
[1771973873352,0.4853711,79.129,79.09,4.91478465]
[1771973874161,0.4853711,79.127,79.091,0.45752113]
[1771973875753,0.47739823,79.125,79.091,0.45752113]
[1771973878053,0.47739823,79.123,79.091,0.45752113]
[1771973881360,0.47739823,79.121,79.08,4.91478465]
[1771973881550,0.47739823,79.119,79.072,0.45058138]
[1771973881860,0.47739823,79.109,79.072,0.45058138]
[1771973883756,0.47739823,79.107,79.09,5.36536603]
[1771973883964,0.47739823,79.138,79.1,4.91478465]
[1771973884158,0.47739823,79.138,79.101,0.45058138]
[1771973885647,0.47739823,79.136,79.101,0.45058138]
[1771973888257,0.47739823,79.134,79.101,0.45058138]
[1771973890751,12.63695297,79.133,79.101,0.45058138]
[1771973890966,0.47739823,79.132,79.101,0.45058138]
[1771973892951,12.63727237,79.131,79.101,0.45058138]
[1771973893151,0.47739823,79.13,79.101,0.45058138]
[1771973894472,0.47739823,79.128,79.101,0.45058138]
[1771973896572,0.47739823,79.126,79.101,0.45058138]
[1771973898879,0.47739823,79.124,79.101,0.45058138]
[1771973904079,0.47739823,79.124,79.103,0.45058138]
[1771973904673,0.47739823,79.124,79.05,102.1]
[1771973904674,0.48833888,79.144,79.111,0.48629557]
[1771973909184,0.47675478,79.142,79.113,0.46443845]
[1771973910476,0.08437292,79.142,79.114,0.46443845]
[1771973912684,0.47675478,79.156,79.131,0.46443845]
[1771973916284,12.63344071,79.155,79.133,0.46443845]
[1771973917580,0.47675478,79.154,79.135,0.46443845]
[1771973917890,31.57940754,79.166,79.135,0.46443845]
[1771973917891,0.47675478,79.165,79.135,0.46443845]
[1771973920167,0.47675478,79.163,79.137,0.46443845]
[1771973920493,12.63196935,79.165,79.137,0.46443845]
[1771973920672,0.47675478,79.166,79.137,0.46443845]
[1771973922377,0.47675478,79.164,79.139,0.46443845]
[1771973925971,0.47675478,79.164,79.141,0.46443845]
[1771973926473,0.47675478,79.162,79.141,0.46443845]
[1771973931104,0.47675478,79.162,79.143,0.46443845]
[1771973932099,0.2,79.17,79.143,0.46443845]
[1771973932305,0.2,79.17,79.151,0.46443845]
[1771973933525,0.2,79.17,79.153,0.46443845]
[1771973933808,0.1,79.18,79.161,0.46443845]
[1771973935397,0.1,79.18,79.163,0.49021476]
[1771973937597,0.1,79.18,79.165,0.49021476]
[1771973940501,0.1,79.18,79.167,0.49021476]
[1771973942812,0.1,79.18,79.169,0.49021476]
[1771973945395,0.1,79.18,79.134,63.18334931]
[1771973945396,0.48081647,79.179,79.141,0.49021476]
[1771973947295,0.48081647,79.179,79.151,0.49021476]
[1771973947493,0.48081647,79.177,79.152,12.63391954]
[1771973947699,0.1,79.19,79.161,0.49021476]
[1771973947700,0.48081647,79.185,79.161,0.49021476]
[1771973947898,0.58081647,79.19,79.161,0.49021476]
[1771973948512,0.48081647,79.188,79.161,0.49021476]
[1771973950104,0.48081647,79.186,79.162,0.49021476]
[1771973950407,0.48081647,79.199,79.171,0.49021476]
[1771973951319,0.48081647,79.189,79.15,4.9146321]
[1771973952022,0.48081647,79.189,79.151,12.63407916]
[1771973952205,0.48081647,79.187,79.147,0.49021476]
[1771973953424,0.48081647,79.187,79.15,5.40484686]
[1771973954832,4.9146321,79.19,79.151,0.49021476]
[1771973954833,0.48081647,79.185,79.151,0.49021476]
[1771973955205,0.48081647,79.185,79.141,0.49021476]
[1771973955514,0.48081647,79.179,79.141,0.49021476]
[1771973956908,0.48081647,79.177,79.143,0.49021476]
[1771973960124,0.48081647,79.175,79.15,4.9146321]
[1771973961312,12.63040897,79.174,79.15,4.90813861]
[1771973961517,0.48081647,79.173,79.15,4.90813861]
[1771973962519,0.48081647,79.173,79.15,5.39835337]
[1771973962719,0.48081647,79.173,79.15,0.49021476]
[1771973966217,0.492165,79.171,79.15,0.49021476]
[1771973968025,0.492165,79.169,79.15,5.39835337]
[1771973968613,0.492165,79.169,79.15,0.49021476]
[1771973970618,0.492165,79.167,79.15,0.49021476]
[1771973974441,0.492165,79.165,79.15,0.49021476]
[1771973976748,0.492165,79.163,79.15,0.49021476]
[1771973977926,0.492165,79.163,79.144,0.4588422]
[1771973978127,0.492165,79.163,79.131,0.4588422]
[1771973981555,0.492165,79.161,79.131,0.4588422]
[1771973984428,0.492165,79.159,79.132,12.63711267]
[1771973984744,0.492165,79.159,79.131,0.4588422]
[1771973985651,0.492165,79.157,79.132,0.4588422]
[1771973986030,12.62817598,79.188,79.142,0.4588422]
[1771973986235,102.0,79.187,79.151,0.4588422]
[1771973988039,0.492165,79.184,79.151,0.4588422]
[1771973990350,0.492165,79.182,79.151,0.4588422]
[1771973993357,44.20252333,79.181,79.151,0.4588422]
[1771973993657,0.492165,79.179,79.151,0.4588422]
[1771973995543,0.46716696,79.177,79.153,0.45711248]
[1771973999237,0.46716696,79.177,79.155,0.45711248]
[1771973999448,0.46716696,79.175,79.155,0.45711248]
[1771974000456,0.46716696,79.181,79.155,0.45711248]
[1771974000648,0.46716696,79.179,79.155,0.45711248]
[1771974001356,0.46716696,79.177,79.097,50.57080122]
[1771974001556,0.46716696,79.177,79.13,4.90813861]
[1771974002150,44.20375455,79.179,79.099,3.69383402]
[1771974002151,0.46716696,79.169,79.12,4.90813861]
[1771974002462,0.46716696,79.159,79.12,4.90813861]
[1771974003261,0.46716696,79.159,79.11,4.90813861]
[1771974003440,0.46716696,79.157,79.112,0.45711248]
[1771974003642,0.46716696,79.149,79.112,0.45711248]
[1771974005465,0.46716696,79.147,79.114,0.45711248]
[1771974005765,0.46716696,79.152,79.131,0.45711248]
[1771974007055,0.46716696,79.157,79.131,0.45711248]
[1771974007656,0.46716696,79.157,79.133,0.45711248]
[1771974008463,12.6326912,79.16,79.133,0.45711248]
[1771974008761,102.0,79.186,79.141,0.45711248]
[1771974008966,102.0,79.189,79.141,0.45711248]
[1771974009462,12.62865441,79.185,79.151,0.45711248]
[1771974009639,0.1,79.2,79.15,4.90813861]
[1771974009640,31.56809508,79.194,79.153,0.45711248]
[1771974009846,12.62642205,79.199,79.161,0.45711248]
[1771974010852,0.46716696,79.198,79.161,0.45711248]
[1771974011567,0.46716696,79.196,79.163,0.45711248]
[1771974013561,0.46716696,79.194,79.165,0.45711248]
[1771974015786,5.00813861,79.2,79.18,4.90813861]
[1771974015787,0.1,79.2,79.18,4.90813861]
[1771974016067,0.1,79.2,79.181,0.45711248]
[1771974019756,0.46716696,79.199,79.159,0.45711248]
[1771974019971,0.46716696,79.189,79.159,0.45711248]
[1771974020173,0.46716696,79.179,79.14,36.4973804]
[1771974020372,0.46716696,79.185,79.15,4.90813861]
[1771974020555,0.46716696,79.199,79.16,4.90813861]
[1771974021361,0.46716696,79.199,79.16,4.90645587]
[1771974021869,0.46716696,79.197,79.161,12.63248316]
[1771974022058,0.46716696,79.197,79.162,0.45711248]
[1771974023281,12.62658147,79.198,79.171,0.45711248]
[1771974023659,0.1,79.2,79.171,0.45711248]
[1771974023973,12.72633694,79.2,79.171,0.45711248]
[1771974024480,0.07306847,79.21,79.19,4.90645587]
[1771974025168,0.07306847,79.21,79.191,44.19694156]
[1771974029273,0.07306847,79.21,79.191,12.62769759]
[1771974029468,0.57307322,79.21,79.145,3.69383402]
[1771974029772,0.57307322,79.21,79.18,4.90645587]
[1771974032284,0.57307322,79.21,79.19,4.90645587]
[1771974034601,0.07306847,79.21,79.191,44.19694156]
[1771974042495,0.50000475,79.208,79.174,3.69383402]
[1771974042691,0.50000475,79.208,79.18,4.90645587]
[1771974044582,0.50000475,79.208,79.181,12.62929238]
[1771974046495,0.50000475,79.208,79.19,4.90645587]
[1771974051093,0.50000475,79.208,79.191,12.62769759]
[1771974052920,0.50000475,79.206,79.18,4.90645587]
[1771974053098,0.50000475,79.204,79.18,17.53580428]
[1771974053608,0.50000475,79.204,79.17,17.53734743]
[1771974058311,0.50000475,79.202,79.17,17.53734743]
[1771974061019,0.50000475,79.2,79.17,17.53734743]
[1771974061515,0.50000475,79.2,79.17,49.11496521]
[1771974061721,0.50000475,79.199,79.147,12.63471767]
[1771974061918,0.50000475,79.179,79.13,4.90645587]
[1771974062100,0.50000475,79.169,79.13,4.90645587]
[1771974063505,0.50000475,79.167,79.131,12.63727237]
[1771974065509,0.50000475,79.167,79.15,4.90645587]
[1771974065710,0.50000475,79.167,79.151,12.63407916]
[1771974066020,12.6302153,79.176,79.151,12.63407916]
[1771974066321,12.6302153,79.176,79.151,13.12107978]
[1771974066505,12.6302153,79.176,79.152,0.48700062]
[1771974066900,48.11432269,79.226,79.152,0.48700062]
[1771974067105,0.1,79.24,79.151,12.63407916]
[1771974067106,12.69777758,79.21,79.181,0.48700062]
[1771974067415,0.07306847,79.21,79.19,4.90645587]
[1771974067820,0.07306847,79.21,79.191,12.62769759]
[1771974068128,0.48538073,79.209,79.19,5.39345649]
[1771974068505,0.48538073,79.209,79.189,12.62796698]
[1771974068707,0.48538073,79.209,79.185,13.1155637]
[1771974068914,0.48538073,79.209,79.175,13.11709202]
[1771974069109,0.48538073,79.209,79.17,0.48700062]
[1771974069334,0.48538073,79.209,79.164,0.13073041]
[1771974070227,0.48538073,79.207,79.164,0.13073041]
[1771974070417,0.48538073,79.199,79.164,0.13073041]
[1771974070613,44.1874558,79.208,79.158,12.63287875]
[1771974070614,0.48538073,79.189,79.158,12.63287875]
[1771974070930,0.48538073,79.189,79.15,12.63420195]
[1771974071308,0.48538073,79.179,79.15,12.63420195]
[1771974071709,0.48538073,79.179,79.141,12.63567556]
[1771974071923,0.48538073,79.179,79.137,12.63617637]
[1771974072132,0.48538073,79.169,79.137,12.63617637]
[1771974072436,0.48538073,79.167,79.131,12.63727237]
[1771974074116,0.48538073,79.159,79.131,12.63727237]
[1771974074319,0.48538073,79.157,79.131,12.63727237]
[1771974074624,12.63101346,79.171,79.141,0.48700062]
[1771974076628,0.48538073,79.17,79.142,12.6355159]
[1771974076830,0.48538073,79.17,79.142,13.12251652]
[1771974078035,0.48538073,79.168,79.142,13.12251652]
[1771974079337,0.48538073,79.166,79.142,13.12251652]
[1771974079637,0.48538073,79.166,79.143,0.48700062]
[1771974081337,0.48538073,79.166,79.144,12.6351966]
[1771974082323,0.48538073,79.166,79.144,13.12219722]
[1771974083034,0.48538073,79.164,79.131,0.48700062]
[1771974083344,0.48538073,79.164,79.131,12.63725481]
[1771974083733,0.48538073,79.164,79.13,4.91034531]
[1771974084342,0.48538073,79.164,79.131,0.48700062]
[1771974085234,0.46512528,79.162,79.132,0.46378796]
[1771974085625,0.46512528,79.171,79.141,0.46378796]
[1771974085926,0.46512528,79.176,79.141,0.46378796]
[1771974087039,12.63002133,79.177,79.14,4.91034531]
[1771974087040,0.46512528,79.174,79.143,0.46378796]
[1771974090053,0.46512528,79.174,79.145,0.46378796]
[1771974092447,12.6305685,79.173,79.146,12.63487731]
[1771974092630,0.46512528,79.172,79.147,0.46378796]
[1771974094833,0.46512528,79.17,79.148,13.098346]
[1771974097050,0.46512528,79.17,79.14,4.91034531]
[1771974097051,0.46512528,79.17,79.149,0.46378796]
[1771974098745,0.46512528,79.17,79.15,12.63423878]
[1771974098950,0.46512528,79.17,79.15,17.54458409]
[1771974099253,0.46512528,79.17,79.151,0.46378796]
[1771974100653,0.46512528,79.17,79.152,12.63391954]
[1771974101134,0.46512528,79.194,79.153,0.46378796]
[1771974101343,0.46512528,79.194,79.161,0.46378796]
[1771974104647,0.46512528,79.192,79.161,13.09615834]
[1771974106065,0.46512528,79.179,79.141,0.46378796]
[1771974106243,0.46512528,79.169,79.131,0.46378796]
[1771974106762,0.46512528,79.167,79.143,0.46378796]
[1771974111156,0.46512528,79.165,79.143,0.46378796]
[1771974113355,12.63200444,79.164,79.143,0.46378796]
[1771974113662,0.46512528,79.163,79.143,0.46378796]
[1771974115451,0.45052347,79.161,79.14,4.91034531]
[1771974115653,0.45052347,79.161,79.14,18.00133966]
[1771974115852,0.45052347,79.161,79.141,0.45516661]
[1771974120579,0.45052347,79.159,79.135,12.63658496]
[1771974120784,0.45052347,79.159,79.132,0.45516661]
[1771974122177,12.63296192,79.158,79.132,0.45516661]
[1771974122384,0.45052347,79.157,79.134,0.45516661]
[1771974126282,12.63328111,79.156,79.134,0.45516661]
[1771974126489,0.45052347,79.155,79.134,0.45516661]
[1771974127787,0.45052347,79.155,79.136,0.45516661]
[1771974131493,0.45052347,79.155,79.138,0.45516661]
[1771974135995,0.45052347,79.155,79.139,13.0911615]
[1771974136396,0.45052347,79.155,79.139,12.63599489]
[1771974136598,0.45052347,79.155,79.139,13.0911615]
[1771974136980,0.45052347,79.155,79.14,0.45516661]
[1771974139581,0.45052347,79.155,79.141,12.63567556]
[1771974141983,0.45052347,79.155,79.141,0.45516661]
[1771974144088,0.45052347,79.155,79.142,12.6355159]
[1771974144803,31.57383566,79.18,79.142,12.6355159]
[1771974144804,0.45052347,79.159,79.143,0.45516661]
[1771974146408,0.45813375,79.157,79.132,0.49730554]
[1771974148507,0.45813375,79.157,79.133,12.63695297]
[1771974148688,0.45813375,79.157,79.134,0.49730554]
[1771974151598,0.45813375,79.157,79.136,0.49730554]
[1771974154713,0.45813375,79.187,79.141,0.49730554]
[1771974154919,0.45813375,79.187,79.151,0.49730554]
[1771974155123,5.56086188,79.22,79.137,44.22709982]
[1771974155124,0.45813375,79.209,79.181,0.49730554]
[1771974155415,0.2,79.22,79.191,0.49730554]
[1771974155719,4.90928024,79.2,79.159,0.49730554]
[1771974156029,4.90928024,79.19,79.154,0.49730554]
[1771974156820,4.90928024,79.18,79.135,0.49730554]
[1771974156994,4.90928024,79.17,79.135,0.49730554]
[1771974157194,0.43443402,79.169,79.135,0.49730554]
[1771974158843,12.6313662,79.168,79.136,12.63647391]
[1771974159042,0.43443398,79.167,79.136,13.13377945]
[1771974161446,0.43443398,79.167,79.137,0.49730554]
[1771974161952,0.43982423,79.165,79.137,0.49730554]
[1771974162255,0.45813375,79.207,79.138,0.49730554]
[1771974162433,0.45813375,79.207,79.136,157.95592396]
[1771974162434,0.45813375,79.207,79.19,4.90928024]
[1771974162742,0.07306847,79.21,79.191,0.49730554]
[1771974163247,0.07306847,79.21,79.192,13.12484367]
[1771974163545,0.53120222,79.21,79.192,12.18459211]
[1771974163745,0.53120222,79.21,79.19,4.90928024]
[1771974163956,0.53120222,79.21,79.163,3.69383402]
[1771974164129,0.53120222,79.21,79.19,4.90928024]
[1771974166545,0.53120222,79.21,79.191,13.12500313]
[1771974166944,0.07306847,79.21,79.2,4.90928024]
[1771974170047,0.07306847,79.21,79.201,12.6261032]
[1771974170655,0.07306847,79.21,79.2,17.535494]
[1771974174241,0.45813375,79.216,79.214,1.29200344]
[1771974176356,0.45813375,79.216,79.2,17.535494]
[1771974177465,0.45813375,79.216,79.2,4.90928024]
[1771974177644,0.45813375,79.216,79.201,13.12594924]
[1771974177847,0.2,79.22,79.202,0.49984604]
[1771974178071,0.71074499,79.22,79.202,0.49984604]
[1771974178250,0.51074499,79.219,79.203,12.62578437]
[1771974180264,0.2,79.22,79.203,12.62578437]
[1771974180265,0.51074499,79.223,79.204,0.49984604]
[1771974180467,0.51074499,79.223,79.21,4.90928024]
[1771974183868,0.51074499,79.223,79.21,17.53382858]
[1771974188976,0.1,79.23,79.211,0.49984604]
[1771974191173,0.1,79.23,79.213,0.49984604]